Workbook

Sheet PropBuy
A1: Property Buying Worksheet
A2: Not all costs are required, especially for agricultural loans.
A3: Check with your lender.
A5: PURCHASE EXPENSES | D5: Date of Closing
A6: Purchase Price: | B6: 150000 | D6: Month | E6: 2
A7: Percent Down: | B7: 20 | D7: Day | E7: 14
A8: Down Payment: | B8: =B6*B7/100 -> 30000 | D8: Year | E8: 2011
A9: Amount Borrowed: | B9: =B6-B8 -> 120000
A10: Origination %: | B10: 1 | D10: =DATE(E8,E6,E7) -> 2011-02-14
A11: Interest Rate: | B11: 10
A12: Years: | B12: 30
A13: Points: | B13: 2 | D13: Perfect fit purchase price
A14: Prop. Taxes/Yr | B14: 2500 | D14: Enter desired
A15: Haz. Insur./Yr | B15: 500 | E15: Total Payment: | F15: 1000
A16: Mortg. Ins/Yr | B16: 400 | D16: Difference needed: | F16: =B31-F15 -> 336.4192174
A17: Mos. Prepaid Taxes | B17: 6
A18: Mos. Prepaid Ins. | B18: 2 | D18: Then press Ctrl-L
A19: Mos. PreMort Ins | B19: 12
A20: Deed Tax% County | B20: 0.05 | D20: New purchase Price: | F20: =B6 -> 150000
A21: Deed Tax % State | B21: 0.15
A22: Mortg Tax% County | B22: 0.05 | D22: Return to original price with
A23: Mortg Tax% State | B23: 0.15 | E23: Cancel or UNDO.
D24: You may need to adjust prop. taxes
A26: Monthly Payments
A27: Loan Payment | B27: =PMT(B11/1200,B12*12,-B9) -> 1053.085884
A28: Prop. Tax Escrow | B28: =B14/12 -> 208.3333333
A29: Insurance Escrow | B29: =B15/12 -> 41.66666667
A30: Mortg. Ins. Escrow | B30: =B16/12 -> 33.33333333
A31: Total Payment | B31: =SUM(B27:B30) -> 1336.419217
A34: Closing Costs | D34: Prepaid Expenses at Closing | G34: =B9*B11/36500 -> 32.87671233
A35: Loan Origination | B35: =B9*B10/100 -> 1200 | D35: Interest | F35: =IF(E6=12,G34*(DATE(E8+1,1,1)-D10),G34*(DATE(E8,E6+1,1)-D10)) -> 493.1506849
A36: Loan Points | B36: =B9*B13/100 -> 2400 | D36: Property Taxes | F36: =B14*B17/12 -> 1250
A37: Credit Check | B37: 30 | D37: Hazard Insurance | F37: =B15*B18/12 -> 83.33333333
A38: Survey Fee | B38: 150 | D38: Pers. Mortg. Ins. | F38: =B16*B19/12 -> 400
A39: Appraisal Fee | B39: 250 | D39: Total Prepaid | F39: =SUM(F35:F38) -> 2226.484018
A40: Title Search | B40: 350
A41: Law. Title Insur | B41: 190
A42: Escrow Setup Fee | B42: 40
A43: Amort. Schedule | B43: 5
A44: Deed Recrdng Fee | B44: 11
A45: Deed Tax County | B45: =B6*B20/100 -> 75 | D45: SUMMARY for | F45: =D10 -> 2011-02-14
A46: Deed Tax State | B46: =B6*B21/100 -> 225
A47: Mortg Recrdg Fee | B47: 10 | D47: Cash Required at Closing
A48: Mortg Tax County | B48: =B9*B22/100 -> 60 | D48: Down Payment | F48: =B8 -> 30000
A49: Mortg Tax State | B49: =B9*B23/100 -> 180 | D49: Closing Costs | F49: =B51 -> 5196
A50: Other | B50: 20 | D50: Prepaid Expenses | F50: =F39 -> 2226.484018
A51: Total Closing | B51: =SUM(B34:B50) -> 5196 | D51: Total Cash Needed | F51: =SUM(F48:F50) -> 37422.48402
